{"text_format":"3","workbook":"xlsx","n_sheets":1,"sheets":["Kilometražo žurnalas ir išla..."],"not_rendered":{"defined_names":6},"read":"whole","date_system":"1900"}

{"sheet":"Kilometražo žurnalas ir išla...","index":0,"n_rows":20,"n_cols":9,"rows_kept":20}
[null,"Kilometražo Žurnalas Ir Išlaidų Ataskaita"]
[]
[null,"Darbuotojo Vardas",null,"Kilometro Įkainis",{"v":0.27,"d":"0.27 EUR"}]
[null,"Darbuotojo ID",null,"Už Laikotarpį",{"$f":"\"Nuo \"&TEXT(MIN(B9:B19),\"yy-mm-dd\")&\" iki \"&TEXT(MAX(B9:B19),\"yy-mm-dd\")","v":"Nuo 17-08-02 iki 17-08-03"}]
[null,"Transporto Priemonės Aprašas",null,"Bendras Kilometražas",{"$f":"Bendras_Kilometražas","v":10}]
[null,"Įgaliojo",null,"Bendra Kompensacija",{"$f":"Bendra_Kompensacija","v":{"v":2.7,"d":"2.70 EUR"}}]
[]
[null,"Data","Pradinė Vieta","Kelionės Tikslo Vieta","Aprašas / Pastabos","Pradinė Rida","Galutinė Rida","Kilometražas","Kompensacija"]
[null,{"$f":"TODAY()","v":"2017-08-02"},"Biuras","Northwind Traders","Susitikimas su klientais",36098,36103,{"$f":"IFERROR(IF(OR(ISBLANK(F9),ISBLANK(G9)),0,G9-F9), \"\")","v":5},{"$f":"IFERROR(H9*$E$3, \"\")","v":{"v":1.35,"d":"1.35 EUR"}}]
[null,{"$f":"TODAY()+1","v":"2017-08-03"},"Northwind Traders","Biuras","Susitikimas su klientais",36103,36108,{"$f":"IFERROR(IF(OR(ISBLANK(F10),ISBLANK(G10)),0,G10-F10), \"\")","v":5},{"$f":"IFERROR(H10*$E$3, \"\")","v":{"v":1.35,"d":"1.35 EUR"}}]
[{"$nulls":7},0,{"v":0,"d":"0.00 EUR"}]
[{"$nulls":7},0,{"v":0,"d":"0.00 EUR"}]
[{"$nulls":7},0,{"v":0,"d":"0.00 EUR"}]
[{"$nulls":7},0,{"v":0,"d":"0.00 EUR"}]
[{"$nulls":7},0,{"v":0,"d":"0.00 EUR"}]
[{"$nulls":7},0,{"v":0,"d":"0.00 EUR"}]
[{"$nulls":7},0,{"v":0,"d":"0.00 EUR"}]
[{"$nulls":7},0,{"v":0,"d":"0.00 EUR"}]
[{"$nulls":7},0,{"v":0,"d":"0.00 EUR"}]
[{"$nulls":6},"Iš viso",{"$f":"SUBTOTAL(109,Išlaidos[Kilometražas])","v":10},{"$f":"SUBTOTAL(109,Išlaidos[Kompensacija])","v":{"v":2.7,"d":"2.70 EUR"}}]